Workbook

Sheet Financement PFI
B1: Dans le cadre du Programme de financement des infrastructures (PFI), le calcul des enveloppes de financement doit être réalisé selon les paramètres définis dans les règles budgétaires en vigueur. Ce calcul nécessite une compréhension rigoureuse des barèmes établis, des limites de financement admissibles et des particularités de chaque projet.
B2: Le présent outil a été conçu pour faciliter ce calcul . Vous devez remplir les cases bleues selon votre situation. Certaines cases contiennent des listes déroulantes. Toutes les informations et le détail du calcul se trouvent dans les règles budgétaires du PFI. Note: Si la salle multifonctionnelle est admissible au financement, l'outil prend pour hypothèse que celui-ci correspond au maximum autorisé. Ainsi, si la superficie de la salle est inférieure à celles indiquées dans les règles administratives, sans être en deçà de 27,9 m2, le financement sera ajusté.
B6: Hypothèses | K6: Financement selon le PFI | L6: Montants
B7: Nombre de places | C7: 0-17 mois | D7: 18 mois et plus | E7: Total | K7: Enveloppe achat-construction
B8: Places avant | E8: =C8+D8 -> 0 places | K8: Ajustement pour les installations de 18 places ou moins (agrand,réam) | L8: =IFERROR(_xlfn.XLOOKUP(B4,macros!AK13:AK30,macros!AN13:AN30),0) -> 0
B9: Nouvelles places | E9: =C9+D9 -> 0 places | K9: Montant de l'annexe 2 | L9: =IF(E10=0,0,_xlfn.XLOOKUP(B4,macros!AA4:AA23,macros!AD4:AD23)) -> 0
B10: Places après | C10: =C8+C9 -> 0 places | D10: =D8+D9 -> 0 places | E10: =C10+D10 -> 0 places | K10: Nombre de places 17 mois ou moins (poupons) | L10: =IFERROR(_xlfn.XLOOKUP(B4,macros!AF6:AF23,macros!AI6:AI23),0) -> 0
K11: Sous-total | L11: =L9+L10+L8 -> 0
B12: Salle multifonctionnelle | K12: Salle multifonctionnelle selon l’annexe 3 | L12: =IF(C12="oui",VLOOKUP($B$4,macros!$G$4:$J$23,4,FALSE),0) -> 0
K13: Total avant indice régional de modulation | L13: =L11+L12 -> 0
B14: Bail en emphytéose | D14: Si oui, durée restante | K14: Indice régional de modulation | L14: =IFERROR(VLOOKUP($C$18,'RB PFI 2025-2026'!$L$8:$N$36,3),0) -> 0
K15: Sous-total | L15: =L13*L14 -> 0
B16: Bail | D16: Si oui, durée restante | K16: Facteur selon la nature des travaux | L16: =IFERROR(VLOOKUP($B$4,macros!$B$6:$E$23,4),0) -> 0%
K17: Sous-total | L17: =L15*L16 -> 0
B18: Région administrative | D18: =VLOOKUP(C18,'RB PFI 2025-2026'!L8:M36,2) ->  | K18: Facteur selon durée restante de l'emphytéose | L18: =IF(C14="oui",VLOOKUP($B$4,macros!$V$4:$Y$23,4,FALSE),1) -> 100.00%
K19: Sous-total | L19: =L17*L18 -> 0
K20: Facteur selon la durée du bail | L20: =IF(C16="oui",VLOOKUP($B$4,macros!$Q$4:$T$23,4,FALSE),1) -> 100.00%
B21: Enveloppe intégration des arts à l'architecture (montant MCC) | K21: Enveloppe maximale achat-construction | L21: =L19*L20 -> 0
B22: Enveloppe terrain
K23: Enveloppe mobilier-équipement
K24: Élément 1 - Montant de base pour un groupe complet | L24: =IF(E10=0,0,_xlfn.XLOOKUP(B4,macros!J32:J49,macros!N32:N49,0)) -> 0
K25: Élément 2 - Montant pour chacune des places groupe complet (0-59) | L25: =IFERROR(_xlfn.XLOOKUP(B4,macros!B32:B49,macros!E32:E49),0) -> 0
K26: Élément 3 - Montant pour chacune des places groupe complet (0-18) | L26: =IFERROR(_xlfn.XLOOKUP(B4,macros!F32:F49,macros!I32:I49),0) -> 0
K27: Enveloppe maximale mobilier équipement | L27: =L24+L25+L26 -> 0
K29: Enveloppe aménagement extérieur | L29: =IFERROR(_xlfn.XLOOKUP(B4,macros!B55:B72,macros!E55:E72),0) -> 0
K31: Enveloppe honoraires professionnels
K32: Élément 1 - Honoraires professionnels | L32: =VLOOKUP(macros!B89,macros!D93:F96,3) -> 0
K33: Élément 2 - Chargé de projet | L33: =IFERROR(_xlfn.XLOOKUP(B4,macros!J78:J95,macros!M78:M95),0) -> 0
K34: Enveloppe maximale honoraires professionnels | L34: =L32+L33 -> 0
K36: Enveloppe jeux extérieurs | L36: =IFERROR(_xlfn.XLOOKUP(B4,macros!G55:G72,macros!J55:J72),0) -> 0
K37: Enveloppe pour l'intégration des arts à l'architecture | L37: =E21 -> 0
K38: Enveloppe terrain | L38: =IFERROR(VLOOKUP($B$4,macros!$B$101:$E$117,4),0) -> 0
K40: Total des enveloppes (financment du Ministère) | L40: =L21+L27+L29+L34+L36+L38+L37 -> 0

Sheet RB PFI 2025-2026 (hidden)
A1: Règles Budgétaires PFI 2025-2026
A2: Dernière MAJ 2025-03-20
C3: Enveloppe Achat-Construction | Q3: Possibilité de retirer cette section ultérieurement | T3: Enveloppe Mobilier-Équipement | Z3: Enveloppe Aménagement Extérieur | AE3: Enveloppe Honoraire professionnels - Élément 1 | AH3: Enveloppe Jeux Extérieurs
C5: Annexe 2 | F5: Poupons | G5: 9,745 $ | I5: Annexe 3 | L5: Annexe 4 | P5: Facteur selon la durée du bail | U5: Élément 1 | V5: Élément 2 | W5: Élément 3 | Z5: % de l'enveloppe Achat-Construction ajusté selon l'indice régional de modulation | AH5: Nouvelles places ou victimes sinistres | AI5: 872 $
P6: 5 ans ou plus avant fin de bail + option renouv. 5 ans | R6: 20% | T6: Pour A) Nouvelles places ou sinistres | AH6: Changement d'emplacement - montant lié aux nbr. places avant | AI6: 219 $
C7: Nombre de places subventionnée(s) | D7: Montant maximal Achat-Construction | I7: Nombre de places subventionnée(s) | J7: Montant maximal pour une salle multifonctionnelle | L7: # | M7: Région administrative | N7: Indice | P7: Durée du bail 10 ans ou plus | R7: 25% | T7: Nombre de places subventionnée(s) | U7: Montant de base | V7: Ajout 1088$, si enfants <= 59 mois | W7: Ajout 1088$, si enfants <= 17 mois | Z7: 7% | AE7: Coût du projet | AF7: Élément 1 | AH7: Changement d'emplacement - montant lié aux nouv. places | AI7: 872 $
C8: 1 | D8: 791,882 $ | I8: 1 | J8: 113,053 $ | L8: 1 | M8: Bas-Saint-Laurent | N8: 1.08 | T8: 1 | U8: 32,709.00 | V8: 1,088 $ | W8: 1,088 $ | AE8: Moins de 626 000 $ | AF8: 9,00 % du coût estimé du projet
C9: 2 | D9: 791,882 $ | I9: 2 | J9: 113,053 $ | L9: 2 | M9: Saguenay-Lac-St-Jean | N9: 1.05 | T9: 2 | U9: 32,709.00 | V9: =T9*V$8 -> 2,176 $ | W9: =T9*W$8 -> 2,176 $ | AE9: Entre 626 000 $ et 1 252 000 $ | AF9: 56 340 $ plus 7,20 % de l’excédent de 626 000 $
C10: 3 | D10: 791,882 $ | I10: 3 | J10: 113,053 $ | L10: 3 | M10: Capitale-Nationale | N10: 1.02 | T10: 3 | U10: 32,709.00 | V10: =T10*V$8 -> 3,264 $ | W10: =T10*W$8 -> 3,264 $ | AE10: Entre 1 252 000 $ et 2 608 000 $ | AF10: 101 412 $ plus 6,30 % de l’excédent de 1 252 000 $
C11: 4 | D11: 791,882 $ | I11: 4 | J11: 113,053 $ | L11: 4 | M11: Mauricie | T11: 4 | U11: 32,709.00 | V11: 4,352 $ | W11: 4,352 $ | AE11: Plus de 2 608 000 $ | AF11: 186 840 $ plus 5,76 % de l’excédent de 2 608 000 $
C12: 5 | D12: 791,882 $ | I12: 5 | J12: 113,053 $ | L12: 4.1 | M12: Mauricie (sauf la région de la Tuque) | N12: 1.00 | T12: 5 | U12: 32,709.00 | V12: 5,440 $ | W12: 5,440 $
C13: 6 | D13: 791,882 $ | I13: 6 | J13: 113,053 $ | L13: 4.2 | M13: Région de la Tuque | N13: 1.03 | T13: 6 | U13: 32,709.00 | V13: 6,528 $ | W13: 6,528 $
C14: 7 | D14: 791,882 $ | I14: 7 | J14: 113,053 $ | L14: 5 | M14: Estrie | N14: 1.00 | T14: 7 | U14: 32,709.00 | V14: 7,616 $ | W14: 7,616 $ | AE14: Enveloppe Honoraire professionnels - Élément 2
C15: 8 | D15: 791,882 $ | I15: 8 | J15: 113,053 $ | L15: 6 | M15: Montréal | N15: 1.07 | T15: 8 | U15: 32,709.00 | V15: 8,704 $ | W15: 8,704 $
C16: 9 | D16: 791,882 $ | I16: 9 | J16: 113,053 $ | L16: 7 | M16: Outaouais | N16: 1.12 | T16: 9 | U16: 32,709.00 | V16: 9,792 $ | W16: 9,792 $ | AE16: Coût du projet | AF16: Élément 2
C17: 10 | D17: 791,882 $ | I17: 10 | J17: 113,053 $ | L17: 8 | M17: Abitibi-Témiscamingue | N17: 1.20 | T17: 10 | U17: 32,709.00 | V17: 10,880 $ | W17: 10,880 $ | AE17: Moins de 1 565 000 $ | AF17: 3 % du coût estimé du projet
C18: 11 | D18: 791,882 $ | I18: 11 | J18: 113,053 $ | L18: 9 | M18: Côte-Nord | T18: 11 | U18: 32,709.00 | V18: 11,968 $ | W18: 11,968 $ | AE18: Entre 1 565 000 $ et 3 130 000 $ | AF18: 46 950 $, plus 2 % de l’excédent de 1 565 000 $
C19: 12 | D19: 791,882 $ | I19: 12 | J19: 113,053 $ | L19: 9.1 | M19: Rivière Saguenay à rivière Moisie | N19: 1.25 | T19: 12 | U19: 32,709.00 | V19: 13,056 $ | W19: 13,056 $ | AE19: Plus de 3 130 000 $ | AF19: 78 250 $, plus 1,50 % de l’excédent de 3 130 000 $
C20: 13 | D20: 791,882 $ | I20: 13 | J20: 113,053 $ | L20: 9.2 | M20: Rivière Moisie à Pointe-Parent et Fermont | N20: 1.60 | T20: 13 | U20: 32,709.00 | V20: 14,144 $ | W20: 14,144 $
C21: 14 | D21: 791,882 $ | I21: 14 | J21: 113,053 $ | L21: 9.3 | M21: Est de Pointe-Parent et Schefferville | N21: 2.00 | T21: 14 | U21: 32,709.00 | V21: 15,232 $ | W21: 15,232 $
C22: 15 | D22: 791,882 $ | I22: 15 | J22: 113,053 $ | L22: 10 | M22: Nord-du-Québec | T22: 15 | U22: 32,709.00 | V22: 16,320 $ | W22: 16,320 $
C23: 16 | D23: 791,882 $ | I23: 16 | J23: 113,053 $ | L23: 10.1 | M23: Nord-du-Québec (sauf les régions de Chibougamau et du Nunavik) | N23: 1.60 | T23: 16 | U23: 32,709.00 | V23: 17,408 $ | W23: 17,408 $
C24: 17 | D24: 791,882 $ | I24: 17 | J24: 113,053 $ | L24: 10.2 | M24: Région de Chibougamau | N24: 1.43 | T24: 17 | U24: 32,709.00 | V24: 18,496 $ | W24: 18,496 $
C25: 18 | D25: 791,882 $ | I25: 18 | J25: 113,053 $ | L25: 10.3 | M25: Région du Nunavik | N25: 4.00 | T25: 18 | U25: 32,709.00 | V25: 19,584 $ | W25: 19,584 $
C26: 19 | D26: 791,882 $ | I26: 19 | J26: 113,053 $ | L26: 11 | M26: Gaspésie-Iles-de-la-Madeleine | T26: 19 | U26: 32,709.00 | V26: 20,672 $ | W26: 20,672 $
C27: 20 | D27: 818,024 $ | I27: 20 | J27: 150,729 $ | L27: 11.1 | M27: Gaspésie | N27: 1.19 | T27: 20 | U27: 32,709.00 | V27: 21,760 $ | W27: 21,760 $
C28: 21 | D28: 844,170 $ | I28: 21 | J28: 150,729 $ | L28: 11.2 | M28: Iles-de-la-Madeleine | N28: 1.60 | T28: 21 | U28: 32,709.00 | V28: 22,848 $ | W28: 22,848 $
C29: 22 | D29: 870,313 $ | I29: 22 | J29: 150,729 $ | L29: 12 | M29: Chaudière-Appalaches | N29: 1.00 | T29: 22 | U29: 32,709.00 | V29: 23,936 $ | W29: 23,936 $
C30: 23 | D30: 896,459 $ | I30: 23 | J30: 150,729 $ | L30: 13 | M30: Laval | N30: 1.03 | T30: 23 | U30: 32,709.00 | V30: 25,024 $ | W30: 25,024 $
C31: 24 | D31: 922,611 $ | I31: 24 | J31: 150,729 $ | L31: 14 | M31: Lanaudière | N31: 1.00 | T31: 24 | U31: 32,709.00 | V31: 26,112 $ | W31: 26,112 $
C32: 25 | D32: 948,749 $ | I32: 25 | J32: 150,729 $ | L32: 15 | M32: Laurentides | T32: 25 | U32: 32,709.00 | V32: 27,200 $ | W32: 27,200 $
C33: 26 | D33: 974,896 $ | I33: 26 | J33: 150,729 $ | L33: 15.1 | M33: Laurentides (sauf la MRC d'Antoine-Labelle) | N33: 1.00 | T33: 26 | U33: 32,709.00 | V33: 28,288 $ | W33: 28,288 $
C34: 27 | D34: 1,001,041 $ | I34: 27 | J34: 150,729 $ | L34: 15.2 | M34: MRC d'Antoine-Labelle | N34: 1.12 | T34: 27 | U34: 32,709.00 | V34: 29,376 $ | W34: 29,376 $
C35: 28 | D35: 1,027,186 $ | I35: 28 | J35: 150,729 $ | L35: 16 | M35: Montérégie | N35: 1.00 | T35: 28 | U35: 32,709.00 | V35: 30,464 $ | W35: 30,464 $
C36: 29 | D36: 1,053,339 $ | I36: 29 | J36: 150,729 $ | L36: 17 | M36: Centre-du-Québec | N36: 1.00 | T36: 29 | U36: 32,709.00 | V36: 31,552 $ | W36: 31,552 $
C37: 30 | D37: 1,079,479 $ | I37: 30 | J37: 150,729 $ | T37: 30 | U37: 32,709.00 | V37: 32,640 $ | W37: 32,640 $
C38: 31 | D38: 1,105,624 $ | I38: 31 | J38: 150,729 $ | T38: 31 | U38: 32,709.00 | V38: 33,728 $ | W38: 33,728 $
C39: 32 | D39: 1,131,769 $ | I39: 32 | J39: 150,729 $ | L39: 1 | T39: 32 | U39: 32,709.00 | V39: 34,816 $ | W39: 34,816 $
C40: 33 | D40: 1,157,912 $ | I40: 33 | J40: 150,729 $ | L40: 2 | T40: 33 | U40: 32,709.00 | V40: 35,904 $ | W40: 35,904 $
C41: 34 | D41: 1,184,065 $ | I41: 34 | J41: 150,729 $ | L41: 3 | T41: 34 | U41: 32,709.00 | V41: 36,992 $ | W41: 36,992 $
C42: 35 | D42: 1,210,214 $ | I42: 35 | J42: 150,729 $ | T42: 35 | U42: 32,709.00 | V42: 38,080 $ | W42: 38,080 $
C43: 36 | D43: 1,236,355 $ | I43: 36 | J43: 150,729 $ | L43: 4.1 | T43: 36 | U43: 32,709.00 | V43: 39,168 $ | W43: 39,168 $
C44: 37 | D44: 1,262,503 $ | I44: 37 | J44: 150,729 $ | L44: 4.2 | T44: 37 | U44: 32,709.00 | V44: 40,256 $ | W44: 40,256 $
C45: 38 | D45: 1,288,644 $ | I45: 38 | J45: 150,729 $ | L45: 5 | T45: 38 | U45: 32,709.00 | V45: 41,344 $ | W45: 41,344 $
C46: 39 | D46: 1,314,793 $ | I46: 39 | J46: 150,729 $ | L46: 6 | T46: 39 | U46: 32,709.00 | V46: 42,432 $ | W46: 42,432 $
C47: 40 | D47: 1,366,821 $ | I47: 40 | J47: 188,419 $ | L47: 7 | T47: 40 | U47: 32,709.00 | V47: 43,520 $ | W47: 43,520 $
C48: 41 | D48: 1,392,968 $ | I48: 41 | J48: 188,419 $ | L48: 8 | T48: 41 | U48: 65,419.00 | V48: 44,608 $ | W48: 44,608 $
C49: 42 | D49: 1,419,116 $ | I49: 42 | J49: 188,419 $ | T49: 42 | U49: 65,419.00 | V49: 45,696 $ | W49: 45,696 $
C50: 43 | D50: 1,445,254 $ | I50: 43 | J50: 188,419 $ | L50: 9.1 | T50: 43 | U50: 65,419.00 | V50: 46,784 $ | W50: 46,784 $
C51: 44 | D51: 1,471,400 $ | I51: 44 | J51: 188,419 $ | L51: 9.2 | T51: 44 | U51: 65,419.00 | V51: 47,872 $ | W51: 47,872 $
C52: 45 | D52: 1,497,550 $ | I52: 45 | J52: 188,419 $ | L52: 9.3 | T52: 45 | U52: 65,419.00 | V52: 48,960 $ | W52: 48,960 $
C53: 46 | D53: 1,523,698 $ | I53: 46 | J53: 188,419 $ | T53: 46 | U53: 65,419.00 | V53: 50,048 $ | W53: 50,048 $
C54: 47 | D54: 1,549,848 $ | I54: 47 | J54: 188,419 $ | L54: 10.1 | T54: 47 | U54: 65,419.00 | V54: 51,136 $ | W54: 51,136 $
C55: 48 | D55: 1,575,990 $ | I55: 48 | J55: 188,419 $ | L55: 10.2 | T55: 48 | U55: 65,419.00 | V55: 52,224 $ | W55: 52,224 $
C56: 49 | D56: 1,602,136 $ | I56: 49 | J56: 188,419 $ | L56: 10.3 | T56: 49 | U56: 65,419.00 | V56: 53,312 $ | W56: 53,312 $
C57: 50 | D57: 1,628,275 $ | I57: 50 | J57: 188,419 $ | T57: 50 | U57: 65,419.00 | V57: 54,400 $ | W57: 54,400 $
C58: 51 | D58: 1,654,429 $ | I58: 51 | J58: 188,419 $ | L58: 11.1 | T58: 51 | U58: 65,419.00 | V58: 55,488 $ | W58: 55,488 $
C59: 52 | D59: 1,680,572 $ | I59: 52 | J59: 188,419 $ | L59: 11.2 | T59: 52 | U59: 65,419.00 | V59: 56,576 $ | W59: 56,576 $
C60: 53 | D60: 1,706,720 $ | I60: 53 | J60: 188,419 $ | L60: 12 | T60: 53 | U60: 65,419.00 | V60: 57,664 $ | W60: 57,664 $
C61: 54 | D61: 1,732,866 $ | I61: 54 | J61: 188,419 $ | L61: 13 | T61: 54 | U61: 65,419.00 | V61: 58,752 $ | W61: 58,752 $
C62: 55 | D62: 1,784,896 $ | I62: 55 | J62: 188,419 $ | L62: 14 | T62: 55 | U62: 65,419.00 | V62: 59,840 $ | W62: 59,840 $
C63: 56 | D63: 1,811,042 $ | I63: 56 | J63: 188,419 $ | T63: 56 | U63: 65,419.00 | V63: 60,928 $ | W63: 60,928 $
C64: 57 | D64: 1,837,190 $ | I64: 57 | J64: 188,419 $ | L64: 15.1 | T64: 57 | U64: 65,419.00 | V64: 62,016 $ | W64: 62,016 $
C65: 58 | D65: 1,863,331 $ | I65: 58 | J65: 188,419 $ | L65: 15.2 | T65: 58 | U65: 65,419.00 | V65: 63,104 $ | W65: 63,104 $
C66: 59 | D66: 1,889,477 $ | I66: 59 | J66: 188,419 $ | L66: 16 | T66: 59 | U66: 65,419.00 | V66: 64,192 $ | W66: 64,192 $
C67: 60 | D67: 1,915,627 $ | I67: 60 | J67: 194,449 $ | L67: 17 | T67: 60 | U67: 65,419.00 | V67: 65,280 $ | W67: 65,280 $
C68: 61 | D68: 1,941,764 $ | I68: 61 | J68: 194,449 $ | T68: 61 | U68: 65,419.00 | V68: 66,368 $ | W68: 66,368 $
C69: 62 | D69: 1,967,913 $ | I69: 62 | J69: 194,449 $ | T69: 62 | U69: 65,419.00 | V69: 67,456 $ | W69: 67,456 $
C70: 63 | D70: 1,994,062 $ | I70: 63 | J70: 194,449 $ | T70: 63 | U70: 65,419.00 | V70: 68,544 $ | W70: 68,544 $
C71: 64 | D71: 2,020,205 $ | I71: 64 | J71: 194,449 $ | T71: 64 | U71: 65,419.00 | V71: 69,632 $ | W71: 69,632 $
C72: 65 | D72: 2,046,353 $ | I72: 65 | J72: 210,655 $ | T72: 65 | U72: 65,419.00 | V72: 70,720 $ | W72: 70,720 $
C73: 66 | D73: 2,072,494 $ | I73: 66 | J73: 210,655 $ | T73: 66 | U73: 65,419.00 | V73: 71,808 $ | W73: 71,808 $
C74: 67 | D74: 2,098,645 $ | I74: 67 | J74: 210,655 $ | T74: 67 | U74: 65,419.00 | V74: =T74*V$8 -> 72,896 $ | W74: =T74*W$8 -> 72,896 $
C75: 68 | D75: 2,124,789 $ | I75: 68 | J75: 210,655 $ | T75: 68 | U75: 65,419.00 | V75: 73,984 $ | W75: 73,984 $
C76: 69 | D76: 2,150,932 $ | I76: 69 | J76: 210,655 $ | T76: 69 | U76: 65,419.00 | V76: 75,072 $ | W76: 75,072 $
C77: 70 | D77: 2,202,972 $ | I77: 70 | J77: 226,856 $ | T77: 70 | U77: 65,419.00 | V77: 76,160 $ | W77: 76,160 $
C78: 71 | D78: 2,229,113 $ | I78: 71 | J78: 226,856 $ | T78: 71 | U78: 65,419.00 | V78: 77,248 $ | W78: 77,248 $
C79: 72 | D79: 2,255,264 $ | I79: 72 | J79: 226,856 $ | T79: 72 | U79: 65,419.00 | V79: 78,336 $ | W79: 78,336 $
C80: 73 | D80: 2,281,408 $ | I80: 73 | J80: 226,856 $ | T80: 73 | U80: 65,419.00 | V80: 79,424 $ | W80: 79,424 $
C81: 74 | D81: 2,307,554 $ | I81: 74 | J81: 226,856 $ | T81: 74 | U81: 65,419.00 | V81: 80,512 $ | W81: 80,512 $
C82: 75 | D82: 2,333,697 $ | I82: 75 | J82: 243,065 $ | T82: 75 | U82: 65,419.00 | V82: 81,600 $ | W82: 81,600 $
C83: 76 | D83: 2,359,843 $ | I83: 76 | J83: 243,065 $ | T83: 76 | U83: 65,419.00 | V83: 82,688 $ | W83: 82,688 $
C84: 77 | D84: 2,385,987 $ | I84: 77 | J84: 243,065 $ | T84: 77 | U84: 65,419.00 | V84: 83,776 $ | W84: 83,776 $
C85: 78 | D85: 2,412,135 $ | I85: 78 | J85: 243,065 $ | T85: 78 | U85: 65,419.00 | V85: 84,864 $ | W85: 84,864 $
C86: 79 | D86: 2,438,279 $ | I86: 79 | J86: 243,065 $ | T86: 79 | U86: 65,419.00 | V86: 85,952 $ | W86: 85,952 $
C87: 80 | D87: 2,464,425 $ | I87: 80 | J87: 259,267 $ | T87: 80 | U87: 65,419.00 | V87: 87,040 $ | W87: 87,040 $
C88: 81 | D88: 2,490,568 $ | I88: 81 | J88: 259,267 $ | T88: 81 | U88: 65,419.00 | V88: 88,128 $ | W88: 88,128 $
C89: 82 | D89: 2,516,714 $ | I89: 82 | J89: 259,267 $ | T89: 82 | U89: 65,419.00 | V89: 89,216 $ | W89: 89,216 $
C90: 83 | D90: 2,542,859 $ | I90: 83 | J90: 259,267 $ | T90: 83 | U90: 65,419.00 | V90: 90,304 $ | W90: 90,304 $
C91: 84 | D91: 2,569,005 $ | I91: 84 | J91: 259,267 $ | T91: 84 | U91: 65,419.00 | V91: 91,392 $ | W91: 91,392 $
C92: 85 | D92: 2,595,151 $ | I92: 85 | J92: 275,469 $ | T92: 85 | U92: 65,419.00 | V92: 92,480 $ | W92: 92,480 $
C93: 86 | D93: 2,621,295 $ | I93: 86 | J93: 275,469 $ | T93: 86 | U93: 65,419.00 | V93: 93,568 $ | W93: 93,568 $
C94: 87 | D94: 2,647,442 $ | I94: 87 | J94: 275,469 $ | T94: 87 | U94: 65,419.00 | V94: 94,656 $ | W94: 94,656 $
C95: 88 | D95: 2,673,587 $ | I95: 88 | J95: 275,469 $ | T95: 88 | U95: 65,419.00 | V95: 95,744 $ | W95: 95,744 $
C96: 89 | D96: 2,699,733 $ | I96: 89 | J96: 275,469 $ | T96: 89 | U96: 65,419.00 | V96: 96,832 $ | W96: 96,832 $
C97: 90 | D97: 2,725,879 $ | I97: 90 | J97: 291,671 $ | T97: 90 | U97: 65,419.00 | V97: 97,920 $ | W97: 97,920 $
C98: 91 | D98: 2,752,023 $ | I98: 91 | J98: 291,671 $ | T98: 91 | U98: 65,419.00 | V98: 99,008 $ | W98: 99,008 $
C99: 92 | D99: 2,778,170 $ | I99: 92 | J99: 291,671 $ | T99: 92 | U99: 65,419.00 | V99: 100,096 $ | W99: 100,096 $
C100: 93 | D100: 2,804,315 $ | I100: 93 | J100: 291,671 $ | T100: 93 | U100: 65,419.00 | V100: 101,184 $ | W100: 101,184 $
C101: 94 | D101: 2,830,461 $ | I101: 94 | J101: 291,671 $ | T101: 94 | U101: 65,419.00 | V101: 102,272 $ | W101: 102,272 $
C102: 95 | D102: 2,856,607 $ | I102: 95 | J102: 307,873 $ | T102: 95 | U102: 65,419.00 | V102: 103,360 $ | W102: 103,360 $
C103: 96 | D103: 2,882,751 $ | I103: 96 | J103: 307,873 $ | T103: 96 | U103: 65,419.00 | V103: 104,448 $ | W103: 104,448 $
C104: 97 | D104: 2,908,897 $ | I104: 97 | J104: 307,873 $ | T104: 97 | U104: 65,419.00 | V104: 105,536 $ | W104: 105,536 $
C105: 98 | D105: 2,935,043 $ | I105: 98 | J105: 307,873 $ | T105: 98 | U105: 65,419.00 | V105: 106,624 $ | W105: 106,624 $
C106: 99 | D106: 2,961,189 $ | I106: 99 | J106: 307,873 $ | T106: 99 | U106: 65,419.00 | V106: 107,712 $ | W106: 107,712 $
C107: 100 | D107: 2,987,334 $ | I107: 100 | J107: 324,075 $ | T107: 100 | U107: 65,419.00 | V107: 108,800 $ | W107: 108,800 $
A110: Agrandissement d'une installation - moins de 20 places | I110: Coût m² | J110: =[4]Multi!$T$19 -> 3,423 $ | U110: Élément 1 | V110: Élément 2 | X110: Élément 3
A111: 2022-2023 | B111: =[4]Base!$S$114 -> $22,055 | T111: Pour B) Changement d'emplacement avec nouvelles places allouées
T112: Nombre de places subventionnée(s) | U112: Montant de base (si nbr. places passe de <=40 à >=41 places) | V112: Ajout 1088$ pour chaque nouv places | W112: Ajout 273$, pour enfants <= 59 mois avant augmentation | X112: Ajout 1088$, si enfants <= 17 mois (nouv places)
A113: 2023-2024 | B113: =[4]Base!$T$114 -> $24,549 | I113: Coût m² | J113: =[4]Multi!$U$19 -> 3,810 $ | T113: 1 | U113: 32,709 $ | V113: 1,088 $ | W113: 273 $ | X113: 1,088 $
T114: 2 | V114: =T114*V$113 -> 2,176 $ | W114: =T114*W$113 -> 546 $ | X114: =T114*X$113 -> 2,176 $
A115: 2024-2025 | B115: =[4]Base!U114 -> $25,391 | I115: Coût m² | J115: =[4]Multi!V19 -> 3,941 $ | T115: 3 | V115: =T115*V$113 -> 3,264 $ | W115: =T115*W$113 -> 819 $ | X115: =T115*X$113 -> 3,264 $
A116: 2025-2026 | B116: $26,148 | I116: Coût m² | J116: 4,058 $ | T116: 4 | V116: 4,352 $ | W116: 1,092 $ | X116: 4,352 $
T117: 5 | V117: 5,440 $ | W117: 1,365 $ | X117: 5,440 $
T118: 6 | V118: 6,528 $ | W118: 1,638 $ | X118: 6,528 $
T119: 7 | V119: 7,616 $ | W119: 1,911 $ | X119: 7,616 $
T120: 8 | V120: 8,704 $ | W120: 2,184 $ | X120: 8,704 $
T121: 9 | V121: 9,792 $ | W121: 2,457 $ | X121: 9,792 $
T122: 10 | V122: 10,880 $ | W122: 2,730 $ | X122: 10,880 $
T123: 11 | V123: 11,968 $ | W123: 3,003 $ | X123: 11,968 $
T124: 12 | V124: 13,056 $ | W124: 3,276 $ | X124: 13,056 $
T125: 13 | V125: 14,144 $ | W125: 3,549 $ | X125: 14,144 $
T126: 14 | V126: 15,232 $ | W126: 3,822 $ | X126: 15,232 $
T127: 15 | V127: 16,320 $ | W127: 4,095 $ | X127: 16,320 $
T128: 16 | V128: 17,408 $ | W128: 4,368 $ | X128: 17,408 $
T129: 17 | V129: 18,496 $ | W129: 4,641 $ | X129: 18,496 $
T130: 18 | V130: 19,584 $ | W130: 4,914 $ | X130: 19,584 $
T131: 19 | V131: 20,672 $ | W131: 5,187 $ | X131: 20,672 $
T132: 20 | V132: 21,760 $ | W132: 5,460 $ | X132: 21,760 $
T133: 21 | V133: 22,848 $ | W133: 5,733 $ | X133: 22,848 $
T134: 22 | V134: 23,936 $ | W134: 6,006 $ | X134: 23,936 $
T135: 23 | V135: 25,024 $ | W135: 6,279 $ | X135: 25,024 $
T136: 24 | V136: 26,112 $ | W136: 6,552 $ | X136: 26,112 $
T137: 25 | V137: 27,200 $ | W137: 6,825 $ | X137: 27,200 $
T138: 26 | V138: 28,288 $ | W138: 7,098 $ | X138: 28,288 $
T139: 27 | V139: 29,376 $ | W139: 7,371 $ | X139: 29,376 $
T140: 28 | V140: 30,464 $ | W140: 7,644 $ | X140: 30,464 $
T141: 29 | V141: 31,552 $ | W141: 7,917 $ | X141: 31,552 $
T142: 30 | V142: 32,640 $ | W142: 8,190 $ | X142: 32,640 $
T143: 31 | V143: 33,728 $ | W143: 8,463 $ | X143: 33,728 $
T144: 32 | V144: 34,816 $ | W144: 8,736 $ | X144: 34,816 $
T145: 33 | V145: 35,904 $ | W145: 9,009 $ | X145: 35,904 $
T146: 34 | V146: 36,992 $ | W146: 9,282 $ | X146: 36,992 $
T147: 35 | V147: 38,080 $ | W147: 9,555 $ | X147: 38,080 $
T148: 36 | V148: 39,168 $ | W148: 9,828 $ | X148: 39,168 $
T149: 37 | V149: 40,256 $ | W149: 10,101 $ | X149: 40,256 $
T150: 38 | V150: 41,344 $ | W150: 10,374 $ | X150: 41,344 $
T151: 39 | V151: 42,432 $ | W151: 10,647 $ | X151: 42,432 $
T152: 40 | V152: 43,520 $ | W152: 10,920 $ | X152: 43,520 $
T153: 41 | V153: 44,608 $ | W153: 11,193 $ | X153: 44,608 $
T154: 42 | V154: 45,696 $ | W154: 11,466 $ | X154: 45,696 $
T155: 43 | V155: 46,784 $ | W155: 11,739 $ | X155: 46,784 $
T156: 44 | V156: 47,872 $ | W156: 12,012 $ | X156: 47,872 $
T157: 45 | V157: 48,960 $ | W157: 12,285 $ | X157: 48,960 $
T158: 46 | V158: 50,048 $ | W158: 12,558 $ | X158: 50,048 $
T159: 47 | V159: 51,136 $ | W159: 12,831 $ | X159: 51,136 $
T160: 48 | V160: 52,224 $ | W160: 13,104 $ | X160: 52,224 $
T161: 49 | V161: 53,312 $ | W161: 13,377 $ | X161: 53,312 $
T162: 50 | V162: 54,400 $ | W162: 13,650 $ | X162: 54,400 $
T163: 51 | V163: 55,488 $ | W163: 13,923 $ | X163: 55,488 $
T164: 52 | V164: 56,576 $ | W164: 14,196 $ | X164: 56,576 $
T165: 53 | V165: 57,664 $ | W165: 14,469 $ | X165: 57,664 $
T166: 54 | V166: 58,752 $ | W166: 14,742 $ | X166: 58,752 $
T167: 55 | V167: 59,840 $ | W167: 15,015 $ | X167: 59,840 $
T168: 56 | V168: 60,928 $ | W168: 15,288 $ | X168: 60,928 $
T169: 57 | V169: 62,016 $ | W169: 15,561 $ | X169: 62,016 $
T170: 58 | V170: 63,104 $ | W170: 15,834 $ | X170: 63,104 $
T171: 59 | V171: 64,192 $ | W171: 16,107 $ | X171: 64,192 $
T172: 60 | V172: 65,280 $ | W172: 16,380 $ | X172: 65,280 $
T173: 61 | V173: 66,368 $ | W173: 16,653 $ | X173: 66,368 $
T174: 62 | V174: 67,456 $ | W174: 16,926 $ | X174: 67,456 $
T175: 63 | V175: 68,544 $ | W175: 17,199 $ | X175: 68,544 $
T176: 64 | V176: 69,632 $ | W176: 17,472 $ | X176: 69,632 $
T177: 65 | V177: 70,720 $ | W177: 17,745 $ | X177: 70,720 $
T178: 66 | V178: 71,808 $ | W178: 18,018 $ | X178: 71,808 $
T179: 67 | V179: =T179*V$113 -> 72,896 $ | W179: =T179*W$113 -> 18,291 $ | X179: =T179*X$113 -> 72,896 $
T180: 68 | V180: 73,984 $ | W180: 18,564 $ | X180: 73,984 $
T181: 69 | V181: 75,072 $ | W181: 18,837 $ | X181: 75,072 $
T182: 70 | V182: 76,160 $ | W182: 19,110 $ | X182: 76,160 $
T183: 71 | V183: 77,248 $ | W183: 19,383 $ | X183: 77,248 $
T184: 72 | V184: 78,336 $ | W184: 19,656 $ | X184: 78,336 $
T185: 73 | V185: 79,424 $ | W185: 19,929 $ | X185: 79,424 $
T186: 74 | V186: 80,512 $ | W186: 20,202 $ | X186: 80,512 $
T187: 75 | V187: 81,600 $ | W187: 20,475 $ | X187: 81,600 $
T188: 76 | V188: 82,688 $ | W188: 20,748 $ | X188: 82,688 $
T189: 77 | V189: 83,776 $ | W189: 21,021 $ | X189: 83,776 $
T190: 78 | V190: 84,864 $ | W190: 21,294 $ | X190: 84,864 $
T191: 79 | V191: 85,952 $ | W191: 21,567 $ | X191: 85,952 $
T192: 80 | V192: 87,040 $ | W192: 21,840 $ | X192: 87,040 $
T193: 81 | V193: 88,128 $ | W193: 22,113 $ | X193: 88,128 $
T194: 82 | V194: 89,216 $ | W194: 22,386 $ | X194: 89,216 $
T195: 83 | V195: 90,304 $ | W195: 22,659 $ | X195: 90,304 $
T196: 84 | V196: 91,392 $ | W196: 22,932 $ | X196: 91,392 $
T197: 85 | V197: 92,480 $ | W197: 23,205 $ | X197: 92,480 $
T198: 86 | V198: 93,568 $ | W198: 23,478 $ | X198: 93,568 $
T199: 87 | V199: 94,656 $ | W199: 23,751 $ | X199: 94,656 $
T200: 88 | V200: 95,744 $ | W200: 24,024 $ | X200: 95,744 $
T201: 89 | V201: 96,832 $ | W201: 24,297 $ | X201: 96,832 $
T202: 90 | V202: 97,920 $ | W202: 24,570 $ | X202: 97,920 $
T203: 91 | V203: 99,008 $ | W203: 24,843 $ | X203: 99,008 $
... 112 more rows

Sheet macros (hidden)
A2: Enveloppe Achat construction:
B3: Financement travaux de rénovation (G77) | G3: Salle multifonctionnelle | L3: Montant de base avant nouvelles places | Q3: Contrat de location | V3: Bail emphytéotique | AA3: Montant de base après nouvelles places | AF3: Montant de base poupons | AK3: Minimum entre 19 places et le nombre de places après ajout des nouvelles places | AN3: =IF('Financement PFI'!E9<=19,'Financement PFI'!E9,19) -> 0
D4: 1 | G4: Nouv. Places | H4: après | I4: Avant | N4: 1 | Q4: =VLOOKUP('Financement PFI'!$F$16,'Annexe III'!$H$6:$K$86,4) -> 0.0% | R4: =VLOOKUP('Financement PFI'!$F$16,'Annexe III'!$H$6:$K$86,2) -> 0.00% | S4: =VLOOKUP('Financement PFI'!$F$16,'Annexe III'!$H$6:$K$86,3) -> 0.0% | V4: =VLOOKUP('Financement PFI'!$F$14,'Annexe III'!$B$6:$F$86,2) -> 0.0% | W4: =VLOOKUP('Financement PFI'!$F$14,'Annexe III'!$B$6:$F$86,5) -> 0.0% | X4: =VLOOKUP('Financement PFI'!$F$14,'Annexe III'!$B$6:$F$86,3) -> 0.00% | AA4: =VLOOKUP('Financement PFI'!$E$10,'RB PFI 2025-2026'!C8:D107,2) ->  | AB4: =+'RB PFI 2025-2026'!D26 -> $791,882.00 | AC4: 1 | AH4: 1 | AK4: Moins
G5: =VLOOKUP('Financement PFI'!$E$9,'RB PFI 2025-2026'!$I$8:$J$107,2) ->  | H5: =VLOOKUP('Financement PFI'!$E$10,'RB PFI 2025-2026'!$I$8:$J$107,2) ->  | I5: =VLOOKUP('Financement PFI'!$E$8,'RB PFI 2025-2026'!$I$8:$J$107,2) ->  | X5: =VLOOKUP('Financement PFI'!$F$14,'Annexe III'!$B$6:$F$86,4) -> 0.0% | AK5: Nombre de places avant l'ajout de nouvelles places | AN5: ='Financement PFI'!E8 -> 0 Places
B6: 5.1 Financement de la construction d'une installation | D6: 2 | E6: 100.0% | G6: 5.1 Financement de la construction d'une installation | I6: 2 | J6: =$G$5 ->  | L6: 5.1 Financement de la construction d'une installation | N6: 2 | Q6: 5.1 Financement de la construction d'une installation | S6: 2 | T6: 100.0% | V6: 5.1 Financement de la construction d'une installation | X6: 2 | Y6: =IF('Financement PFI'!$C$14="oui",$V$4,1) -> 100.0% | AA6: 5.1 Financement de la construction d'une installation | AC6: 2 | AD6: =IF('Financement PFI'!$E$10<=19,791882,IF('Financement PFI'!$E$10>=20,macros!$AA$4:$AB$4)) -> 791,882.00 $ | AF6: 5.1 Financement de la construction d'une installation | AH6: 2 | AI6: ='Financement PFI'!$C$9*'RB PFI 2025-2026'!$G$5 -> 0.00 $ | AN6: =AN3-AN5 -> 0 Places
B7: 5.1 Financement de la construction d'une installation - Reloc. + nouvelles places | D7: 3 | E7: 100.0% | G7: 5.1 Financement de la construction d'une installation - Reloc. + nouvelles places | I7: 3 | J7: =$H$5 ->  | L7: 5.1 Financement de la construction d'une installation - Reloc. + nouvelles places | N7: 3 | Q7: 5.1 Financement de la construction d'une installation - Reloc. + nouvelles places | S7: 3 | T7: 100.0% | V7: 5.1 Financement de la construction d'une installation - Reloc. + nouvelles places | X7: 3 | Y7: =IF('Financement PFI'!$C$14="oui",$V$4,1) -> 100.0% | AA7: 5.1 Financement de la construction d'une installation - Reloc. + nouvelles places | AC7: 3 | AD7: =IF('Financement PFI'!$E$10<=19,791882,IF('Financement PFI'!$E$10>=20,macros!$AA$4:$AB$4)) -> 791,882.00 $ | AF7: 5.1 Financement de la construction d'une installation - Reloc. + nouvelles places | AH7: 3 | AI7: ='Financement PFI'!$C$10*'RB PFI 2025-2026'!$G$5 -> 0.00 $ | AK7: Différence | AN7: =IF($AN$6<0,0,$AN$6) -> 0
B8: 5.1 Financement de la construction d'une installation - Reloc. sans nouvelles places | D8: 4 | E8: 100.0% | G8: 5.1 Financement de la construction d'une installation - Reloc. sans nouvelles places | I8: 4 | J8: =$I$5 ->  | L8: 5.1 Financement de la construction d'une installation - Reloc. sans nouvelles places | N8: 4 | Q8: 5.1 Financement de la construction d'une installation - Reloc. sans nouvelles places | S8: 4 | T8: 100.0% | V8: 5.1 Financement de la construction d'une installation - Reloc. sans nouvelles places | X8: 4 | Y8: =IF('Financement PFI'!$C$14="oui",$V$4,1) -> 100.0% | AA8: 5.1 Financement de la construction d'une installation - Reloc. sans nouvelles places | AC8: 4 | AD8: =IF('Financement PFI'!$E$10<=19,791882,IF('Financement PFI'!$E$10>=20,macros!$AA$4:$AB$4)) -> 791,882.00 $ | AF8: 5.1 Financement de la construction d'une installation - Reloc. sans nouvelles places | AH8: 4 | AI8: ='Financement PFI'!$C$8*'RB PFI 2025-2026'!$G$5 -> 0.00 $ | AK8: Montant d'ajustement | AN8: ='RB PFI 2025-2026'!B116 -> 26,148.00 $
B9: 5.2 Financement de l'acquisition d'une installation | D9: 5 | E9: 100.0% | G9: 5.2 Financement de l'acquisition d'une installation | I9: 5 | J9: =$G$5 ->  | L9: 5.2 Financement de l'acquisition d'une installation | N9: 5 | Q9: 5.2 Financement de l'acquisition d'une installation | S9: 5 | T9: 100.0% | V9: 5.2 Financement de l'acquisition d'une installation | X9: 5 | Y9: =IF('Financement PFI'!$C$14="oui",$V$4,1) -> 100.0% | AA9: 5.2 Financement de l'acquisition d'une installation | AC9: 5 | AD9: =IF('Financement PFI'!$E$10<=19,791882,IF('Financement PFI'!$E$10>=20,macros!$AA$4:$AB$4)) -> 791,882.00 $ | AF9: 5.2 Financement de l'acquisition d'une installation | AH9: 5 | AI9: ='Financement PFI'!$C$9*'RB PFI 2025-2026'!$G$5 -> 0.00 $
B10: 5.2 Financement de l'acquisition d'une installation - Reloc. + nouvelles places | D10: 6 | E10: 100.0% | G10: 5.2 Financement de l'acquisition d'une installation - Reloc. + nouvelles places | I10: 6 | J10: =$H$5 ->  | L10: 5.2 Financement de l'acquisition d'une installation - Reloc. + nouvelles places | N10: 6 | Q10: 5.2 Financement de l'acquisition d'une installation - Reloc. + nouvelles places | S10: 6 | T10: 100.0% | V10: 5.2 Financement de l'acquisition d'une installation - Reloc. + nouvelles places | X10: 6 | Y10: =IF('Financement PFI'!$C$14="oui",$V$4,1) -> 100.0% | AA10: 5.2 Financement de l'acquisition d'une installation - Reloc. + nouvelles places | AC10: 6 | AD10: =IF('Financement PFI'!$E$10<=19,791882,IF('Financement PFI'!$E$10>=20,macros!$AA$4:$AB$4)) -> 791,882.00 $ | AF10: 5.2 Financement de l'acquisition d'une installation - Reloc. + nouvelles places | AH10: 6 | AI10: ='Financement PFI'!$C$10*'RB PFI 2025-2026'!$G$5 -> 0.00 $
B11: 5.2 Financement de l'acquisition d'une installation - Reloc. sans nouvelles places | D11: 7 | E11: 100.0% | G11: 5.2 Financement de l'acquisition d'une installation - Reloc. sans nouvelles places | I11: 7 | J11: =$I$5 ->  | L11: 5.2 Financement de l'acquisition d'une installation - Reloc. sans nouvelles places | N11: 7 | Q11: 5.2 Financement de l'acquisition d'une installation - Reloc. sans nouvelles places | S11: 7 | T11: 100.0% | V11: 5.2 Financement de l'acquisition d'une installation - Reloc. sans nouvelles places | X11: 7 | Y11: =IF('Financement PFI'!$C$14="oui",$V$4,1) -> 100.0% | AA11: 5.2 Financement de l'acquisition d'une installation - Reloc. sans nouvelles places | AC11: 7 | AD11: =IF('Financement PFI'!$E$10<=19,791882,IF('Financement PFI'!$E$10>=20,macros!$AA$4:$AB$4)) -> 791,882.00 $ | AF11: 5.2 Financement de l'acquisition d'une installation - Reloc. sans nouvelles places | AH11: 7 | AI11: ='Financement PFI'!$C$8*'RB PFI 2025-2026'!$G$5 -> 0.00 $ | AK11: Ajustement pour les installations de 18 places ou moins (agr. Réam.) (F73)
B12: 5.3 Financement des améliorations locatives | D12: 8 | E12: 100.0% | G12: 5.3 Financement des améliorations locatives | I12: 8 | J12: =$G$5 ->  | L12: 5.3 Financement des améliorations locatives | N12: 8 | Q12: 5.3 Financement des améliorations locatives | S12: 8 | T12: =IF('Financement PFI'!$C$16="oui",$Q$4,FALSE) -> FALSE | V12: 5.3 Financement des améliorations locatives | X12: 8 | Y12: 100.0% | AA12: 5.3 Financement des améliorations locatives | AC12: 8 | AD12: =IF('Financement PFI'!$E$10<=19,791882,IF('Financement PFI'!$E$10>=20,macros!$AA$4:$AB$4)) -> 791,882.00 $ | AF12: 5.3 Financement des améliorations locatives | AH12: 8 | AI12: ='Financement PFI'!$C$9*'RB PFI 2025-2026'!$G$5 -> 0.00 $ | AM12: 1
B13: 5.3 Financement des améliorations locatives - Reloc. + nouvelles places | D13: 9 | E13: 100.0% | G13: 5.3 Financement des améliorations locatives - Reloc. + nouvelles places | I13: 9 | J13: =$H$5 ->  | L13: 5.3 Financement des améliorations locatives - Reloc. + nouvelles places | N13: 9 | Q13: 5.3 Financement des améliorations locatives - Reloc. + nouvelles places | S13: 9 | T13: =IF('Financement PFI'!$C$16="oui",$Q$4,FALSE) -> FALSE | V13: 5.3 Financement des améliorations locatives - Reloc. + nouvelles places | X13: 9 | Y13: 100.0% | AA13: 5.3 Financement des améliorations locatives - Reloc. + nouvelles places | AC13: 9 | AD13: =IF('Financement PFI'!$E$10<=19,791882,IF('Financement PFI'!$E$10>=20,macros!$AA$4:$AB$4)) -> 791,882.00 $ | AF13: 5.3 Financement des améliorations locatives - Reloc. + nouvelles places | AH13: 9 | AI13: ='Financement PFI'!$C$10*'RB PFI 2025-2026'!$G$5 -> 0.00 $ | AK13: 5.1 Financement de la construction d'une installation | AM13: 2
B14: 5.3 Financement des améliorations locatives - Reloc. sans nouvelles places | D14: 10 | E14: 100.0% | G14: 5.3 Financement des améliorations locatives - Reloc. sans nouvelles places | I14: 10 | J14: =$I$5 ->  | L14: 5.3 Financement des améliorations locatives - Reloc. sans nouvelles places | N14: 10 | Q14: 5.3 Financement des améliorations locatives - Reloc. sans nouvelles places | S14: 10 | T14: =IF('Financement PFI'!$C$16="oui",$Q$4,FALSE) -> FALSE | V14: 5.3 Financement des améliorations locatives - Reloc. sans nouvelles places | X14: 10 | Y14: 100.0% | AA14: 5.3 Financement des améliorations locatives - Reloc. sans nouvelles places | AC14: 10 | AD14: =IF('Financement PFI'!$E$10<=19,791882,IF('Financement PFI'!$E$10>=20,macros!$AA$4:$AB$4)) -> 791,882.00 $ | AF14: 5.3 Financement des améliorations locatives - Reloc. sans nouvelles places | AH14: 10 | AI14: ='Financement PFI'!$C$8*'RB PFI 2025-2026'!$G$5 -> 0.00 $ | AK14: 5.1 Financement de la construction d'une installation - Reloc. + nouvelles places | AM14: 3
B15: 5.4 Financement de l'agrandissement d'une installation - Propriétaire | D15: 11 | E15: 100.0% | G15: 5.4 Financement de l'agrandissement d'une installation - Propriétaire | I15: 11 | J15: 0 | L15: 5.4 Financement de l'agrandissement d'une installation - Propriétaire | N15: 11 | O15: =VLOOKUP('Financement PFI'!$E$8,'RB PFI 2025-2026'!$C$8:$D$107,2) ->  | Q15: 5.4 Financement de l'agrandissement d'une installation - Propriétaire | S15: 11 | T15: 100.0% | V15: 5.4 Financement de l'agrandissement d'une installation - Propriétaire | X15: 11 | Y15: =IF('Financement PFI'!$C$14="oui",$W$4,1) -> 100.0% | AA15: 5.4 Financement de l'agrandissement d'une installation - Propriétaire | AC15: 11 | AD15: =IF('Financement PFI'!$E$10<=19,791882,IF('Financement PFI'!$E$10>=20,macros!$AA$4:$AB$4))-O15 ->  | AF15: 5.4 Financement de l'agrandissement d'une installation - Propriétaire | AH15: 11 | AI15: ='Financement PFI'!$C$9*'RB PFI 2025-2026'!$G$5 -> 0.00 $ | AK15: 5.1 Financement de la construction d'une installation - Reloc. sans nouvelles places | AM15: 4
B16: 5.4.1 Financement de l'agrandissement d'une installation - Propriétaire | D16: 12 | E16: 120.0% | G16: 5.4.1 Financement de l'agrandissement d'une installation - Propriétaire | I16: 12 | J16: 0 | L16: 5.4.1 Financement de l'agrandissement d'une installation - Propriétaire | N16: 12 | O16: =VLOOKUP('Financement PFI'!$E$8,'RB PFI 2025-2026'!$C$8:$D$107,2) ->  | Q16: 5.4.1 Financement de l'agrandissement d'une installation - Propriétaire | S16: 12 | T16: 100.0% | V16: 5.4.1 Financement de l'agrandissement d'une installation - Propriétaire | X16: 12 | Y16: =IF('Financement PFI'!$C$14="oui",$W$4,1) -> 100.0% | AA16: 5.4.1 Financement de l'agrandissement d'une installation - Propriétaire | AC16: 12 | AD16: =IF('Financement PFI'!$E$10<=19,791882,IF('Financement PFI'!$E$10>=20,macros!$AA$4:$AB$4))-O16 ->  | AF16: 5.4.1 Financement de l'agrandissement d'une installation - Propriétaire | AH16: 12 | AI16: ='Financement PFI'!$C$9*'RB PFI 2025-2026'!$G$5 -> 0.00 $ | AK16: 5.2 Financement de l'acquisition d'une installation | AM16: 5
B17: 5.5 Financement de l'agrandissement d'une installation - Locataire | D17: 13 | E17: 100.0% | G17: 5.5 Financement de l'agrandissement d'une installation - Locataire | I17: 13 | J17: 0 | L17: 5.5 Financement de l'agrandissement d'une installation - Locataire | N17: 13 | O17: =VLOOKUP('Financement PFI'!$E$8,'RB PFI 2025-2026'!$C$8:$D$107,2) ->  | Q17: 5.5 Financement de l'agrandissement d'une installation - Locataire | S17: 13 | T17: =IF('Financement PFI'!$C$16="oui",$Q$4,FALSE) -> FALSE | V17: 5.5 Financement de l'agrandissement d'une installation - Locataire | X17: 13 | Y17: 100.0% | AA17: 5.5 Financement de l'agrandissement d'une installation - Locataire | AC17: 13 | AD17: =IF('Financement PFI'!$E$10<=19,791882,IF('Financement PFI'!$E$10>=20,macros!$AA$4:$AB$4))-O17 ->  | AF17: 5.5 Financement de l'agrandissement d'une installation - Locataire | AH17: 13 | AI17: ='Financement PFI'!$C$9*'RB PFI 2025-2026'!$G$5 -> 0.00 $ | AK17: 5.2 Financement de l'acquisition d'une installation - Reloc. + nouvelles places | AM17: 6
B18: 5.5.1 Financement de l'agrandissement d'une installation - Locataire | D18: 14 | E18: 120.0% | G18: 5.5.1 Financement de l'agrandissement d'une installation - Locataire | I18: 14 | J18: 0 | L18: 5.5.1 Financement de l'agrandissement d'une installation - Locataire | N18: 14 | O18: =VLOOKUP('Financement PFI'!$E$8,'RB PFI 2025-2026'!$C$8:$D$107,2) ->  | Q18: 5.5.1 Financement de l'agrandissement d'une installation - Locataire | S18: 14 | T18: =IF('Financement PFI'!$C$16="oui",$Q$4,FALSE) -> FALSE | V18: 5.5.1 Financement de l'agrandissement d'une installation - Locataire | X18: 14 | Y18: 100.0% | AA18: 5.5.1 Financement de l'agrandissement d'une installation - Locataire | AC18: 14 | AD18: =IF('Financement PFI'!$E$10<=19,791882,IF('Financement PFI'!$E$10>=20,macros!$AA$4:$AB$4))-O18 ->  | AF18: 5.5.1 Financement de l'agrandissement d'une installation - Locataire | AH18: 14 | AI18: ='Financement PFI'!$C$9*'RB PFI 2025-2026'!$G$5 -> 0.00 $ | AK18: 5.2 Financement de l'acquisition d'une installation - Reloc. sans nouvelles places | AM18: 7
B19: 5.6 Financement du réaménagement d'une installation + aug. nombres de places - Propriétaire | D19: 15 | E19: 25.0% | G19: 5.6 Financement du réaménagement d'une installation + aug. nombres de places - Propriétaire | I19: 15 | J19: 0 | L19: 5.6 Financement du réaménagement d'une installation + aug. nombres de places - Propriétaire | N19: 15 | O19: =VLOOKUP('Financement PFI'!$E$8,'RB PFI 2025-2026'!$C$8:$D$107,2) ->  | Q19: 5.6 Financement du réaménagement d'une installation + aug. nombres de places - Propriétaire | S19: 15 | T19: 100.0% | V19: 5.6 Financement du réaménagement d'une installation + aug. nombres de places - Propriétaire | X19: 15 | Y19: =IF('Financement PFI'!$C$14="oui",$X$4,1) -> 100.00% | AA19: 5.6 Financement du réaménagement d'une installation + aug. nombres de places - Propriétaire | AC19: 15 | AD19: =IF('Financement PFI'!$E$10<=19,791882,IF('Financement PFI'!$E$10>=20,macros!$AA$4:$AB$4))-O19 ->  | AF19: 5.6 Financement du réaménagement d'une installation + aug. nombres de places - Propriétaire | AH19: 15 | AI19: ='Financement PFI'!$C$9*'RB PFI 2025-2026'!$G$5 -> 0.00 $ | AK19: 5.3 Financement des améliorations locatives | AM19: 8
B20: 5.7 Financement du réaménagement d'une installation + aug. nombres de places - Locataire | D20: 16 | E20: 100.0% | G20: 5.7 Financement du réaménagement d'une installation + aug. nombres de places - Locataire | I20: 16 | J20: 0 | L20: 5.7 Financement du réaménagement d'une installation + aug. nombres de places - Locataire | N20: 16 | O20: =VLOOKUP('Financement PFI'!$E$8,'RB PFI 2025-2026'!$C$8:$D$107,2) ->  | Q20: 5.7 Financement du réaménagement d'une installation + aug. nombres de places - Locataire | S20: 16 | T20: =IF('Financement PFI'!$C$16="oui",$R$4,FALSE) -> FALSE | V20: 5.7 Financement du réaménagement d'une installation + aug. nombres de places - Locataire | X20: 16 | Y20: 100.0% | AA20: 5.7 Financement du réaménagement d'une installation + aug. nombres de places - Locataire | AC20: 16 | AD20: =IF('Financement PFI'!$E$10<=19,791882,IF('Financement PFI'!$E$10>=20,macros!$AA$4:$AB$4))-O20 ->  | AF20: 5.7 Financement du réaménagement d'une installation + aug. nombres de places - Locataire | AH20: 16 | AI20: ='Financement PFI'!$C$9*'RB PFI 2025-2026'!$G$5 -> 0.00 $ | AK20: 5.3 Financement des améliorations locatives - Reloc. + nouvelles places | AM20: 9
B21: 5.8 Financement des rénovations d'une installation - Propriétaire | D21: 17 | E21: 40.0% | G21: 5.8 Financement des rénovations d'une installation - Propriétaire | I21: 17 | J21: =I5 ->  | L21: 5.8 Financement des rénovations d'une installation - Propriétaire | N21: 17 | Q21: 5.8 Financement des rénovations d'une installation - Propriétaire | S21: 17 | T21: 100.0% | V21: 5.8 Financement des rénovations d'une installation - Propriétaire | X21: 17 | Y21: =IF('Financement PFI'!$C$14="oui",$X$5,1) -> 100.0% | AA21: 5.8 Financement des rénovations d'une installation - Propriétaire | AC21: 17 | AD21: =IF('Financement PFI'!$E$10<=19,791882,IF('Financement PFI'!$E$10>=20,macros!$AA$4:$AB$4)) -> 791,882.00 $ | AF21: 5.8 Financement des rénovations d'une installation - Propriétaire | AH21: 17 | AI21: ='Financement PFI'!$C$8*'RB PFI 2025-2026'!$G$5 -> 0.00 $ | AK21: 5.3 Financement des améliorations locatives - Reloc. sans nouvelles places | AM21: 10
B22: 5.9 Financement des rénovations d'une installation - Locataire | D22: 18 | E22: 100.0% | G22: 5.9 Financement des rénovations d'une installation - Locataire | I22: 18 | J22: =I5 ->  | L22: 5.9 Financement des rénovations d'une installation - Locataire | N22: 18 | Q22: 5.9 Financement des rénovations d'une installation - Locataire | S22: 18 | T22: =IF('Financement PFI'!$C$16="oui",$S$4,FALSE) -> FALSE | V22: 5.9 Financement des rénovations d'une installation - Locataire | X22: 18 | Y22: 100.0% | AA22: 5.9 Financement des rénovations d'une installation - Locataire | AC22: 18 | AD22: =IF('Financement PFI'!$E$10<=19,791882,IF('Financement PFI'!$E$10>=20,macros!$AA$4:$AB$4)) -> 791,882.00 $ | AF22: 5.9 Financement des rénovations d'une installation - Locataire | AH22: 18 | AI22: ='Financement PFI'!$C$8*'RB PFI 2025-2026'!$G$5 -> 0.00 $ | AK22: 5.4 Financement de l'agrandissement d'une installation - Propriétaire | AM22: 11 | AN22: =$AN$8*$AN$7 -> 0.00 $
B23: 5.10 Conditions particulières pour le CPE locataire qui désire acheter l'installation qu'il loue | D23: 19 | E23: 100.0% | G23: 5.10 Conditions particulières pour le CPE locataire qui désire acheter l'installation qu'il loue | I23: 19 | J23: =I5 ->  | L23: 5.10 Conditions particulières pour le CPE locataire qui désire acheter l'installation qu'il loue | N23: 19 | Q23: 5.10 Conditions particulières pour le CPE locataire qui désire acheter l'installation qu'il loue | S23: 19 | T23: 100.0% | V23: 5.10 Conditions particulières pour le CPE locataire qui désire acheter l'installation qu'il loue | X23: 19 | Y23: 100.0% | AA23: 5.10 Conditions particulières pour le CPE locataire qui désire acheter l'installation qu'il loue | AC23: 19 | AD23: =IF('Financement PFI'!$E$10<=19,791882,IF('Financement PFI'!$E$10>=20,macros!$AA$4:$AB$4)) -> 791,882.00 $ | AF23: 5.10 Conditions particulières pour le CPE locataire qui désire acheter l'installation qu'il loue | AH23: 19 | AI23: ='Financement PFI'!$C$8*'RB PFI 2025-2026'!$G$5 -> 0.00 $ | AK23: 5.4.1 Financement de l'agrandissement d'une installation - Propriétaire | AM23: 12 | AN23: 0.00 $
AK24: 5.5 Financement de l'agrandissement d'une installation - Locataire | AM24: 13 | AN24: 0.00 $
AK25: 5.5.1 Financement de l'agrandissement d'une installation - Locataire | AM25: 14 | AN25: 0.00 $
B26: Oui | AK26: 5.6 Financement du réaménagement d'une installation + aug. nombres de places - Propriétaire | AM26: 15 | AN26: 0.00 $
B27: Non | AK27: 5.7 Financement du réaménagement d'une installation + aug. nombres de places - Locataire | AM27: 16 | AN27: 0.00 $
AK28: 5.8 Financement des rénovations d'une installation - Propriétaire | AM28: 17
A29: Enveloppe mobilier équipement: | AK29: 5.9 Financement des rénovations d'une installation - Locataire | AM29: 18
B30: Mobilier et équipement - Élément 2 | F30: Mobilier et équipement - Élément 3 | J30: Mobilier et équipement - Élément 1 | AK30: 5.10 Conditions particulières pour le CPE locataire qui désire acheter l'installation qu'il loue
B31: ='RB PFI 2025-2026'!W8 -> 1088 | C31: ='RB PFI 2025-2026'!W113 -> 273 | D31: 1 | F31: ='RB PFI 2025-2026'!V113 -> 1088 | H31: 1 | J31: ='RB PFI 2025-2026'!U8 -> $32,709.00 | K31: ='RB PFI 2025-2026'!U48 -> $65,419.00 | L31: ='RB PFI 2025-2026'!U88 -> $65,419.00 | M31: 1 | N31: 0
B32: 5.1 Financement de la construction d'une installation | D32: 2 | E32: ='Financement PFI'!$E$9*$B$31 -> 0 | F32: 5.1 Financement de la construction d'une installation | H32: 2 | I32: =IF($P$38>=1,($F$31*'Financement PFI'!$C$9),0) -> 0.00 $ | J32: 5.1 Financement de la construction d'une installation | M32: 2 | N32: =_xlfn.SWITCH($O$36,1,$J$31,2,$K$31,3,$L$31) -> $32,709.00 | O32: Groupe de 40 places | Q32: =IF(($P$40)>=1,1,0) -> 0 | R32: =IF(($O$36)>=2,1,0) -> 0
B33: 5.1 Financement de la construction d'une installation - Reloc. + nouvelles places | D33: 3 | E33: =+((($P$38*5)+($P$39*8))*$B$31)+($C$31*'Financement PFI'!$E$8) -> 0 | F33: 5.1 Financement de la construction d'une installation - Reloc. + nouvelles places | H33: 3 | I33: =($P$38*5)*$F$31 -> 0.00 $ | J33: 5.1 Financement de la construction d'une installation - Reloc. + nouvelles places | M33: 3 | N33: =IF(($Q$32+$R$32)>=2,$J$31,0) -> $0.00 | O33: =IF('Financement PFI'!$E$8<=40,$P$33,0) -> 1 | P33: 1
B34: 5.1 Financement de la construction d'une installation - Reloc. sans nouvelles places | D34: 4 | E34: ='Financement PFI'!$E$8*$C$31 -> 0 | F34: 5.1 Financement de la construction d'une installation - Reloc. sans nouvelles places | H34: 4 | I34: 0 | J34: 5.1 Financement de la construction d'une installation - Reloc. sans nouvelles places | M34: 4 | N34: $0.00 | O34: =IF('Financement PFI'!$E$10>=41,$P$34,0) -> 0 | P34: 1
B35: 5.2 Financement de l'acquisition d'une installation | D35: 5 | E35: ='Financement PFI'!$E$9*$B$31 -> 0 | F35: 5.2 Financement de l'acquisition d'une installation | H35: 5 | I35: =IF($P$38>=1,($F$31*'Financement PFI'!$C$9),0) -> 0.00 $ | J35: 5.2 Financement de l'acquisition d'une installation | M35: 5 | N35: =_xlfn.SWITCH($O$36,1,$J$31,2,$K$31,3,$L$31) -> $32,709.00 | O35: =IF('Financement PFI'!$E$10>=101,$P$35,0) -> 0 | P35: 1
B36: 5.2 Financement de l'acquisition d'une installation - Reloc. + nouvelles places | D36: 6 | E36: =+((($P$38*5)+($P$39*8))*$B$31)+($C$31*'Financement PFI'!$E$8) -> 0 | F36: 5.2 Financement de l'acquisition d'une installation - Reloc. + nouvelles places | H36: 6 | I36: =($P$38*5)*$F$31 -> 0.00 $ | J36: 5.2 Financement de l'acquisition d'une installation - Reloc. + nouvelles places | M36: 6 | N36: =IF(($Q$32+$R$32)>=2,$J$31,0) -> $0.00 | O36: =SUM(O33:O35) -> 1
B37: 5.2 Financement de l'acquisition d'une installation - Reloc. sans nouvelles places | D37: 7 | E37: ='Financement PFI'!$E$8*$C$31 -> 0 | F37: 5.2 Financement de l'acquisition d'une installation - Reloc. sans nouvelles places | H37: 7 | I37: 0 | J37: 5.2 Financement de l'acquisition d'une installation - Reloc. sans nouvelles places | M37: 7 | N37: $0.00 | O37: Groupe complet
B38: 5.3 Financement des améliorations locatives | D38: 8 | E38: ='Financement PFI'!$E$9*$B$31 -> 0 | F38: 5.3 Financement des améliorations locatives | H38: 8 | I38: =IF($P$38>=1,($F$31*'Financement PFI'!$C$9),0) -> 0.00 $ | J38: 5.3 Financement des améliorations locatives | M38: 8 | N38: =_xlfn.SWITCH($O$36,1,$J$31,2,$K$31,3,$L$31) -> $32,709.00 | O38: 0-18 | P38: =((ROUNDDOWN(('Financement PFI'!$C$9/5),0))) -> 0
B39: 5.3 Financement des améliorations locatives - Reloc. + nouvelles places | D39: 9 | E39: =+((($P$38*5)+($P$39*8))*$B$31)+($C$31*'Financement PFI'!$E$8) -> 0 | F39: 5.3 Financement des améliorations locatives - Reloc. + nouvelles places | H39: 9 | I39: =($P$38*5)*$F$31 -> 0.00 $ | J39: 5.3 Financement des améliorations locatives - Reloc. + nouvelles places | M39: 9 | N39: =IF(($Q$32+$R$32)>=2,$J$31,0) -> $0.00 | O39: 18-59 | P39: =((ROUNDDOWN(('Financement PFI'!D9/8),0))) -> 0
B40: 5.3 Financement des améliorations locatives - Reloc. sans nouvelles places | D40: 10 | E40: ='Financement PFI'!$E$8*$C$31 -> 0 | F40: 5.3 Financement des améliorations locatives - Reloc. sans nouvelles places | H40: 10 | I40: 0.00 $ | J40: 5.3 Financement des améliorations locatives - Reloc. sans nouvelles places | M40: 10 | P40: =SUM(P38:P39) -> 0
B41: 5.4 Financement de l'agrandissement d'une installation - Propriétaire | D41: 11 | E41: =+((($P$38*5)+($P$39*8))*$B$31) -> 0 | F41: 5.4 Financement de l'agrandissement d'une installation - Propriétaire | H41: 11 | I41: =($P$38*5)*$F$31 -> 0.00 $ | J41: 5.4 Financement de l'agrandissement d'une installation - Propriétaire | M41: 11 | N41: $0.00
B42: 5.4.1 Financement de l'agrandissement d'une installation - Propriétaire | D42: 12 | E42: =+((($P$38*5)+($P$39*8))*$B$31) -> 0 | F42: 5.4.1 Financement de l'agrandissement d'une installation - Propriétaire | H42: 12 | I42: 0.00 $ | J42: 5.4.1 Financement de l'agrandissement d'une installation - Propriétaire | M42: 12 | N42: $0.00
B43: 5.5 Financement de l'agrandissement d'une installation - Locataire | D43: 13 | E43: 0 | F43: 5.5 Financement de l'agrandissement d'une installation - Locataire | H43: 13 | I43: 0.00 $ | J43: 5.5 Financement de l'agrandissement d'une installation - Locataire | M43: 13 | N43: $0.00
B44: 5.5.1 Financement de l'agrandissement d'une installation - Locataire | D44: 14 | E44: 0 | F44: 5.5.1 Financement de l'agrandissement d'une installation - Locataire | H44: 14 | I44: 0.00 $ | J44: 5.5.1 Financement de l'agrandissement d'une installation - Locataire | M44: 14 | N44: $0.00
B45: 5.6 Financement du réaménagement d'une installation + aug. nombres de places - Propriétaire | D45: 15 | E45: 0 | F45: 5.6 Financement du réaménagement d'une installation + aug. nombres de places - Propriétaire | H45: 15 | I45: 0.00 $ | J45: 5.6 Financement du réaménagement d'une installation + aug. nombres de places - Propriétaire | M45: 15 | N45: $0.00
B46: 5.7 Financement du réaménagement d'une installation + aug. nombres de places - Locataire | D46: 16 | E46: 0 | F46: 5.7 Financement du réaménagement d'une installation + aug. nombres de places - Locataire | H46: 16 | I46: 0.00 $ | J46: 5.7 Financement du réaménagement d'une installation + aug. nombres de places - Locataire | M46: 16 | N46: $0.00
B47: 5.8 Financement des rénovations d'une installation - Propriétaire | D47: 17 | E47: 0 | F47: 5.8 Financement des rénovations d'une installation - Propriétaire | H47: 17 | I47: 0 | J47: 5.8 Financement des rénovations d'une installation - Propriétaire | M47: 17 | N47: $0.00
B48: 5.9 Financement des rénovations d'une installation - Locataire | D48: 18 | E48: 0 | F48: 5.9 Financement des rénovations d'une installation - Locataire | H48: 18 | I48: 0 | J48: 5.9 Financement des rénovations d'une installation - Locataire | M48: 18 | N48: 0
B49: 5.10 Conditions particulières pour le CPE locataire qui désire acheter l'installation qu'il loue | D49: 19 | E49: 0 | F49: 5.10 Conditions particulières pour le CPE locataire qui désire acheter l'installation qu'il loue | H49: 19 | I49: 0 | J49: 5.10 Conditions particulières pour le CPE locataire qui désire acheter l'installation qu'il loue | M49: 19 | N49: 0
A52: Enveloppe aménagement extérieur; | G52: Enveloppe jeux extérieurs
B53: Aménagement extérieur | G53: Financement des équipements de jeux extérieurs
D54: 1 | G54: ='RB PFI 2025-2026'!AI5 -> 872 | H54: ='RB PFI 2025-2026'!AI6 -> $219.00 | I54: 1
B55: 5.1 Financement de la construction d'une installation | D55: 2 | E55: =+ROUND(('Financement PFI'!$L$21*0.07),2) -> 0 | G55: 5.1 Financement de la construction d'une installation | I55: 2 | J55: ='Financement PFI'!$E$9*$G$54 -> 0
B56: 5.1 Financement de la construction d'une installation - Reloc. + nouvelles places | D56: 3 | E56: =+ROUND(('Financement PFI'!$L$21*0.07),2) -> 0 | G56: 5.1 Financement de la construction d'une installation - Reloc. + nouvelles places | I56: 3 | J56: =+((($P$38*5)+($P$39*8))*$G$54)+($H$54*'Financement PFI'!$E$8) -> 0
B57: 5.1 Financement de la construction d'une installation - Reloc. Sans nouv. Places | D57: 4 | E57: =+ROUND(('Financement PFI'!$L$21*0.07),2) -> 0 | G57: 5.1 Financement de la construction d'une installation - Reloc. sans nouvelles places | I57: 4 | J57: ='Financement PFI'!$E$8*$H$54 -> 0
B58: 5.2 Financement de l'acquisition d'une installation | D58: 5 | E58: =+ROUND(('Financement PFI'!$L$21*0.07),2) -> 0 | G58: 5.2 Financement de l'acquisition d'une installation | I58: 5 | J58: ='Financement PFI'!$E$9*$G$54 -> 0
B59: 5.2 Financement de l'acquisition d'une installation - Reloc. + nouvelles places | D59: 6 | E59: =+ROUND(('Financement PFI'!$L$21*0.07),2) -> 0 | G59: 5.2 Financement de l'acquisition d'une installation - Reloc. + nouvelles places | I59: 6 | J59: =+((($P$38*5)+($P$39*8))*$G$54)+($H$54*'Financement PFI'!$E$8) -> 0
B60: 5.2 Financement de l'acquisition d'une installation - Reloc. sans nouvelles places | D60: 7 | E60: =+ROUND(('Financement PFI'!$L$21*0.07),2) -> 0 | G60: 5.2 Financement de l'acquisition d'une installation - Reloc. sans nouvelles places | I60: 7 | J60: ='Financement PFI'!$E$8*$H$54 -> 0
B61: 5.3 Financement des améliorations locatives | D61: 8 | E61: =+ROUND(('Financement PFI'!$L$21*0.07),2) -> 0 | G61: 5.3 Financement des améliorations locatives | I61: 8 | J61: ='Financement PFI'!$E$9*$G$54 -> 0
B62: 5.3 Financement des améliorations locatives - Reloc. + nouvelles places | D62: 9 | E62: =+ROUND(('Financement PFI'!$L$21*0.07),2) -> 0 | G62: 5.3 Financement des améliorations locatives - Reloc. + nouvelles places | I62: 9 | J62: =+((($P$38*5)+($P$39*8))*$G$54)+($H$54*'Financement PFI'!$E$8) -> 0
B63: 5.3 Financement des améliorations locatives - Reloc. sans nouvelles places | D63: 10 | E63: =+ROUND(('Financement PFI'!$L$21*0.07),2) -> 0 | G63: 5.3 Financement des améliorations locatives - Reloc. sans nouvelles places | I63: 10 | J63: ='Financement PFI'!$E$8*$H$54 -> 0
B64: 5.4 Financement de l'agrandissement d'une installation - Propriétaire | D64: 11 | E64: =+ROUND(('Financement PFI'!$L$21*0.07),2) -> 0 | G64: 5.4 Financement de l'agrandissement d'une installation - Propriétaire | I64: 11 | J64: =+((($P$38*5)+($P$39*8))*$G$54) -> 0
B65: 5.4.1 Financement de l'agrandissement d'une installation - Propriétaire | D65: 12 | E65: =+ROUND(('Financement PFI'!$L$21*0.07),2) -> 0 | G65: 5.4.1 Financement de l'agrandissement d'une installation - Propriétaire | I65: 12 | J65: =+((($P$38*5)+($P$39*8))*$G$54) -> 0
B66: 5.5 Financement de l'agrandissement d'une installation - Locataire | D66: 13 | E66: 0 | G66: 5.5 Financement de l'agrandissement d'une installation - Locataire | I66: 13 | J66: 0
B67: 5.5.1 Financement de l'agrandissement d'une installation - Locataire | D67: 14 | E67: 0 | G67: 5.5.1 Financement de l'agrandissement d'une installation - Locataire | I67: 14 | J67: 0
B68: 5.6 Financement du réaménagement d'une installation + aug. nombres de places - Propriétaire | D68: 15 | E68: 0 | G68: 5.6 Financement du réaménagement d'une installation + aug. nombres de places - Propriétaire | I68: 15 | J68: 0
B69: 5.7 Financement du réaménagement d'une installation + aug. nombres de places - Locataire | D69: 16 | E69: 0 | G69: 5.7 Financement du réaménagement d'une installation + aug. nombres de places - Locataire | I69: 16 | J69: 0
B70: 5.8 Financement des rénovations d'une installation - Propriétaire | D70: 17 | E70: 0 | G70: 5.8 Financement des rénovations d'une installation - Propriétaire | I70: 17
B71: 5.9 Financement des rénovations d'une installation - Locataire | D71: 18 | E71: 0 | G71: 5.9 Financement des rénovations d'une installation - Locataire | I71: 18
B72: 5.10 Conditions particulières pour le CPE locataire qui désire acheter l'installation qu'il loue | D72: 19 | G72: 5.10 Conditions particulières pour le CPE locataire qui désire acheter l'installation qu'il loue | I72: 19
J75: Chargé de projet - Élément 2
J76: Chargé de projet - Élément 2
B77: Enveloppe honoraires professionnels | L77: 1
J78: 5.1 Financement de la construction d'une installation | L78: 2 | M78: =VLOOKUP($B$89,$G$94:$I$96,3) -> 0.00 $
J79: 5.1 Financement de la construction d'une installation - Reloc. + nouvelles places | L79: 3 | M79: 0.00 $
J80: 5.1 Financement de la construction d'une installation - Reloc. Sans nouv. Places | L80: 4 | M80: 0.00 $
J81: 5.2 Financement de l'acquisition d'une installation | L81: 5 | M81: 0.00 $
J82: 5.2 Financement de l'acquisition d'une installation - Reloc. + nouvelles places | L82: 6 | M82: 0.00 $
J83: 5.2 Financement de l'acquisition d'une installation - Reloc. sans nouvelles places | L83: 7 | M83: 0.00 $
J84: 5.3 Financement des améliorations locatives | L84: 8 | M84: 0.00 $
J85: 5.3 Financement des améliorations locatives - Reloc. + nouvelles places | L85: 9 | M85: 0.00 $
J86: 5.3 Financement des améliorations locatives - Reloc. sans nouvelles places | M86: 0.00 $
J87: 5.4 Financement de l'agrandissement d'une installation - Propriétaire | L87: 10 | M87: 0.00 $
J88: 5.4.1 Financement de l'agrandissement d'une installation - Propriétaire | L88: 11 | M88: 0.00 $
B89: ='Financement PFI'!$L$21+'Financement PFI'!$L$29 -> 0.00 $ | D89: Honoraires professionnels | G89: Chargé de projet | J89: 5.5 Financement de l'agrandissement d'une installation - Locataire | L89: 12 | M89: 0.00 $
B90: ='Financement PFI'!$L$21+'Financement PFI'!$L$29+'Financement PFI'!$L$37 -> 0.00 $ | D90: Montants de référence | G90: Montants de référence | J90: 5.5.1 Financement de l'agrandissement d'une installation - Locataire | L90: 13 | M90: 0.00 $
J91: 5.6 Financement du réaménagement d'une installation + aug. nombres de places - Propriétaire | L91: 14 | M91: =VLOOKUP($B$89,$G$94:$I$96,3) -> 0.00 $
F92: Élément 1 | J92: 5.7 Financement du réaménagement d'une installation + aug. nombres de places - Locataire | L92: 15
D93: 0.00 $ | E93: 626,000.00 $ | F93: =+B90*0.09 -> 0 | I93: Élément 2 | J93: 5.8 Financement des rénovations d'une installation - Propriétaire | L93: 16
D94: 626,000.00 $ | E94: 1,252,000.00 $ | F94: =+((B90-D94)*0.072)+56340 -> $11,268.00 | G94: 0.00 $ | H94: 1,565,000.00 $ | I94: =+B89*0.03 -> 0 | J94: 5.9 Financement des rénovations d'une installation - Locataire | L94: 17
D95: 1,252,000.00 $ | E95: 2,608,000.00 $ | F95: =+(((B90)-D95)*0.063)+101412 -> $22,536.00 | G95: 1,565,000.00 $ | H95: 3,039,000.00 $ | I95: =+((B89-G95)*0.02)+46950 -> $15,650.00 | J95: 5.10 Conditions particulières pour le CPE locataire qui désire acheter l'installation qu'il loue | L95: 18
D96: 2,608,000.00 $ | E96: 15,000,000.00 $ | F96: =+(((B90)-D96)*0.0576)+186840 -> $36,619.20 | G96: 3,130,000.00 $ | H96: 15,000,000.00 $ | I96: =+((B89-G96)*0.015)+78250 -> $31,300.00
A98: Enveloppe terrain
B99: Financement du terrain et des infrastructures (F222)
B100: ='Financement PFI'!E$22 -> 0 | D100: 1
B101: 5.1 Financement de la construction d'une installation | D101: 2 | E101: =+$B$100 -> 0
B102: 5.1 Financement de la construction d'une installation - Reloc + nouv. Places | D102: 3 | E102: =+$B$100 -> 0
B103: 5.1 Financement de la construction d'une installation - Reloc. Sans nouv. Places | D103: 4 | E103: 0
B104: 5.2 Financement de la construction d'une installation | D104: 5 | E104: 0
B105: 5.2 Financement de la construction d'une installation - Reloc. + nouv. Places | D105: 6 | E105: 0
B106: 5.2 Financement de la construction d'une installation - Reloc. Sans nouv. Places | D106: 7 | E106: 0
B107: 5.3 Financement des améliorations locatives | D107: 8
B108: 5.3 Financement des améliorations locatives - Changement de localisation | D108: 9
B109: 5.4 Financement de l'agrandissement d'une installation - Propriétaire | D109: 10 | E109: =+$B$100 -> 0
B110: 5.4.1 Financement de l'agrandissement d'une installation - Propriétaire | D110: 11 | E110: 0
B111: 5.5 Financement de l'agrandissement d'une installation - Locataire | D111: 12
B112: 5.5.1 Financement de l'agrandissement d'une installation - Locataire | D112: 13
B113: 5.6 Financement du réaménagement d'une installation + aug. nombres de places - Propriétaire | D113: 14
B114: 5.7 Financement du réaménagement d'une installation + aug. nombres de places - Locataire | D114: 15
B115: 5.8 Financement des rénovations d'une installation - Propriétaire | D115: 16
B116: 5.9 Financement des rénovations d'une installation - Locataire | D116: 17
B117: 5.10 Conditions particulières pour le CPE locataire qui désire acheter l'installation qu'il loue | D117: 18 | E117: =+$B$100 -> 0

Sheet Annexe III (hidden)
K1: Document interne
A2: Annexe III
B4: Bail en emphytéose | H4: Bail en location
B5: Duré restante du bail | C5: Facteur R 5.1 | D5: Facteur R 5.6 | E5: Facteur R 5.8 | F5: Facteur R 5.4 | H5: Duré restante du bail | I5: Facteur R 5.7 | J5: Facteur R 5.8 | K5: Facteur R 5.3 5.5
B6: 0 | C6: 0.0 | D6: 0.0 | E6: 0.0% | F6: 0.0 | H6: 0 | I6: 0.0% | J6: 0.0% | K6: 0.0%
B7: 1 | C7: 0.0% | D7: 0.0% | E7: 8.0% | F7: 20.0% | H7: 1 | I7: 0.0% | J7: 0.0% | K7: 0.0%
B8: 2 | C8: 0.0% | D8: 0.0% | E8: 8.0% | F8: 20.0% | H8: 2 | I8: 0.0% | J8: 0.0% | K8: 0.0%
B9: 3 | C9: 0.0% | D9: 0.0% | E9: 8.0% | F9: 20.0% | H9: 3 | I9: 0.0% | J9: 0.0% | K9: 0.0%
B10: 4 | C10: 0.0% | D10: 0.0% | E10: 8.0% | F10: 20.0% | H10: 4 | I10: 0.0% | J10: 0.0% | K10: 0.0%
B11: 5 | C11: 0.0% | D11: 5.0% | E11: 8.0% | F11: 20.0% | H11: 5 | I11: 5.0% | J11: 8.0% | K11: 20.0%
B12: 6 | C12: 0.0% | D12: 5.0% | E12: 8.0% | F12: 20.0% | H12: 6 | I12: 5.0% | J12: 8.0% | K12: 20.0%
B13: 7 | C13: 0.0% | D13: 5.0% | E13: 8.0% | F13: 20.0% | H13: 7 | I13: 5.0% | J13: 8.0% | K13: 20.0%
B14: 8 | C14: 0.0% | D14: 5.0% | E14: 8.0% | F14: 20.0% | H14: 8 | I14: 5.0% | J14: 8.0% | K14: 20.0%
B15: 9 | C15: 0.0% | D15: 5.0% | E15: 8.0% | F15: 20.0% | H15: 9 | I15: 5.0% | J15: 8.0% | K15: 20.0%
B16: 10 | C16: 0.0% | D16: 6.25% | E16: 8.0% | F16: 20.0% | H16: 10 | I16: 6.25% | J16: 10.0% | K16: 25.0%
B17: 11 | C17: 0.0% | D17: 6.25% | E17: 8.0% | F17: 20.0% | H17: 11 | I17: 6.25% | J17: 10.0% | K17: 25.0%
B18: 12 | C18: 0.0% | D18: 6.25% | E18: 8.0% | F18: 20.0% | H18: 12 | I18: 6.25% | J18: 10.0% | K18: 25.0%
B19: 13 | C19: 0.0% | D19: 6.25% | E19: 8.0% | F19: 20.0% | H19: 13 | I19: 6.25% | J19: 10.0% | K19: 25.0%
B20: 14 | C20: 0.0% | D20: 6.25% | E20: 8.0% | F20: 20.0% | H20: 14 | I20: 6.25% | J20: 10.0% | K20: 25.0%
B21: 15 | C21: 0.0% | D21: 6.25% | E21: 8.0% | F21: 20.0% | H21: 15 | I21: 6.25% | J21: 10.0% | K21: 25.0%
B22: 16 | C22: 0.0% | D22: 6.25% | E22: 8.0% | F22: 20.0% | H22: 16 | I22: 6.25% | J22: 10.0% | K22: 25.0%
B23: 17 | C23: 0.0% | D23: 6.25% | E23: 8.0% | F23: 20.0% | H23: 17 | I23: 6.25% | J23: 10.0% | K23: 25.0%
B24: 18 | C24: 0.0% | D24: 6.25% | E24: 8.0% | F24: 20.0% | H24: 18 | I24: 6.25% | J24: 10.0% | K24: 25.0%
B25: 19 | C25: 0.0% | D25: 6.25% | E25: 8.0% | F25: 20.0% | H25: 19 | I25: 6.25% | J25: 10.0% | K25: 25.0%
B26: 20 | C26: 0.0% | D26: 6.25% | E26: 100.0% | F26: 100.0% | H26: 20 | I26: 6.25% | J26: 10.0% | K26: 25.0%
B27: =+B26+1 -> 21 | C27: 0.0% | D27: 6.25% | E27: 100.0% | F27: 100.0% | H27: =+H26+1 -> 21 | I27: 6.25% | J27: 10.0% | K27: 25.0%
B28: 22 | C28: 0.0% | D28: 6.25% | E28: 100.0% | F28: 100.0% | H28: 22 | I28: 6.25% | J28: 10.0% | K28: 25.0%
B29: 23 | C29: 0.0% | D29: 6.25% | E29: 100.0% | F29: 100.0% | H29: 23 | I29: 6.25% | J29: 10.0% | K29: 25.0%
B30: 24 | C30: 0.0% | D30: 6.25% | E30: 100.0% | F30: 100.0% | H30: 24 | I30: 6.25% | J30: 10.0% | K30: 25.0%
B31: 25 | C31: 0.0% | D31: 6.25% | E31: 100.0% | F31: 100.0% | H31: 25 | I31: 6.25% | J31: 10.0% | K31: 25.0%
B32: 26 | C32: 0.0% | D32: 6.25% | E32: 100.0% | F32: 100.0% | H32: 26 | I32: 6.25% | J32: 10.0% | K32: 25.0%
B33: 27 | C33: 0.0% | D33: 6.25% | E33: 100.0% | F33: 100.0% | H33: 27 | I33: 6.25% | J33: 10.0% | K33: 25.0%
B34: 28 | C34: 0.0% | D34: 6.25% | E34: 100.0% | F34: 100.0% | H34: 28 | I34: 6.25% | J34: 10.0% | K34: 25.0%
B35: 29 | C35: 0.0% | D35: 6.25% | E35: 100.0% | F35: 100.0% | H35: 29 | I35: 6.25% | J35: 10.0% | K35: 25.0%
B36: 30 | C36: 0.0% | D36: 6.25% | E36: 100.0% | F36: 100.0% | H36: 30 | I36: 6.25% | J36: 10.0% | K36: 25.0%
B37: 31 | C37: 0.0% | D37: 6.25% | E37: 100.0% | F37: 100.0% | H37: 31 | I37: 6.25% | J37: 10.0% | K37: 25.0%
B38: 32 | C38: 0.0% | D38: 6.25% | E38: 100.0% | F38: 100.0% | H38: 32 | I38: 6.25% | J38: 10.0% | K38: 25.0%
B39: 33 | C39: 0.0% | D39: 6.25% | E39: 100.0% | F39: 100.0% | H39: 33 | I39: 6.25% | J39: 10.0% | K39: 25.0%
B40: 34 | C40: 0.0% | D40: 6.25% | E40: 100.0% | F40: 100.0% | H40: 34 | I40: 6.25% | J40: 10.0% | K40: 25.0%
B41: 35 | C41: 0.0% | D41: 6.25% | E41: 100.0% | F41: 100.0% | H41: 35 | I41: 6.25% | J41: 10.0% | K41: 25.0%
B42: 36 | C42: 0.0% | D42: 6.25% | E42: 100.0% | F42: 100.0% | H42: 36 | I42: 6.25% | J42: 10.0% | K42: 25.0%
B43: 37 | C43: 0.0% | D43: 6.25% | E43: 100.0% | F43: 100.0% | H43: 37 | I43: 6.25% | J43: 10.0% | K43: 25.0%
B44: 38 | C44: 0.0% | D44: 6.25% | E44: 100.0% | F44: 100.0% | H44: 38 | I44: 6.25% | J44: 10.0% | K44: 25.0%
B45: 39 | C45: 0.0% | D45: 6.25% | E45: 100.0% | F45: 100.0% | H45: 39 | I45: 6.25% | J45: 10.0% | K45: 25.0%
B46: 40 | C46: 100.0% | D46: 6.25% | E46: 100.0% | F46: 100.0% | H46: 40 | I46: 6.25% | J46: 10.0% | K46: 25.0%
B47: 41 | C47: 100.0% | D47: 6.25% | E47: 100.0% | F47: 100.0% | H47: 41 | I47: 6.25% | J47: 10.0% | K47: 25.0%
B48: 42 | C48: 100.0% | D48: 6.25% | E48: 100.0% | F48: 100.0% | H48: 42 | I48: 6.25% | J48: 10.0% | K48: 25.0%
B49: 43 | C49: 100.0% | D49: 6.25% | E49: 100.0% | F49: 100.0% | H49: 43 | I49: 6.25% | J49: 10.0% | K49: 25.0%
B50: 44 | C50: 100.0% | D50: 6.25% | E50: 100.0% | F50: 100.0% | H50: 44 | I50: 6.25% | J50: 10.0% | K50: 25.0%
B51: 45 | C51: 100.0% | D51: 6.25% | E51: 100.0% | F51: 100.0% | H51: 45 | I51: 6.25% | J51: 10.0% | K51: 25.0%
B52: 46 | C52: 100.0% | D52: 6.25% | E52: 100.0% | F52: 100.0% | H52: 46 | I52: 6.25% | J52: 10.0% | K52: 25.0%
B53: 47 | C53: 100.0% | D53: 6.25% | E53: 100.0% | F53: 100.0% | H53: 47 | I53: 6.25% | J53: 10.0% | K53: 25.0%
B54: 48 | C54: 100.0% | D54: 6.25% | E54: 100.0% | F54: 100.0% | H54: 48 | I54: 6.25% | J54: 10.0% | K54: 25.0%
B55: 49 | C55: 100.0% | D55: 6.25% | E55: 100.0% | F55: 100.0% | H55: 49 | I55: 6.25% | J55: 10.0% | K55: 25.0%
B56: 50 | C56: 100.0% | D56: 6.25% | E56: 100.0% | F56: 100.0% | H56: 50 | I56: 6.25% | J56: 10.0% | K56: 25.0%
B57: 51 | C57: 100.0% | D57: 6.25% | E57: 100.0% | F57: 100.0% | H57: 51 | I57: 6.25% | J57: 10.0% | K57: 25.0%
B58: 52 | C58: 100.0% | D58: 6.25% | E58: 100.0% | F58: 100.0% | H58: 52 | I58: 6.25% | J58: 10.0% | K58: 25.0%
B59: 53 | C59: 100.0% | D59: 6.25% | E59: 100.0% | F59: 100.0% | H59: 53 | I59: 6.25% | J59: 10.0% | K59: 25.0%
B60: 54 | C60: 100.0% | D60: 6.25% | E60: 100.0% | F60: 100.0% | H60: 54 | I60: 6.25% | J60: 10.0% | K60: 25.0%
B61: 55 | C61: 100.0% | D61: 6.25% | E61: 100.0% | F61: 100.0% | H61: 55 | I61: 6.25% | J61: 10.0% | K61: 25.0%
B62: 56 | C62: 100.0% | D62: 6.25% | E62: 100.0% | F62: 100.0% | H62: 56 | I62: 6.25% | J62: 10.0% | K62: 25.0%
B63: 57 | C63: 100.0% | D63: 6.25% | E63: 100.0% | F63: 100.0% | H63: 57 | I63: 6.25% | J63: 10.0% | K63: 25.0%
B64: 58 | C64: 100.0% | D64: 6.25% | E64: 100.0% | F64: 100.0% | H64: 58 | I64: 6.25% | J64: 10.0% | K64: 25.0%
B65: 59 | C65: 100.0% | D65: 6.25% | E65: 100.0% | F65: 100.0% | H65: 59 | I65: 6.25% | J65: 10.0% | K65: 25.0%
B66: 60 | C66: 100.0% | D66: 6.25% | E66: 100.0% | F66: 100.0% | H66: 60 | I66: 6.25% | J66: 10.0% | K66: 25.0%
B67: 61 | C67: 100.0% | D67: 6.25% | E67: 100.0% | F67: 100.0% | H67: 61 | I67: 6.25% | J67: 10.0% | K67: 25.0%
B68: 62 | C68: 100.0% | D68: 6.25% | E68: 100.0% | F68: 100.0% | H68: 62 | I68: 6.25% | J68: 10.0% | K68: 25.0%
B69: 63 | C69: 100.0% | D69: 6.25% | E69: 100.0% | F69: 100.0% | H69: 63 | I69: 6.25% | J69: 10.0% | K69: 25.0%
B70: 64 | C70: 100.0% | D70: 6.25% | E70: 100.0% | F70: 100.0% | H70: 64 | I70: 6.25% | J70: 10.0% | K70: 25.0%
B71: 65 | C71: 100.0% | D71: 6.25% | E71: 100.0% | F71: 100.0% | H71: 65 | I71: 6.25% | J71: 10.0% | K71: 25.0%
B72: 66 | C72: 100.0% | D72: 6.25% | E72: 100.0% | F72: 100.0% | H72: 66 | I72: 6.25% | J72: 10.0% | K72: 25.0%
B73: 67 | C73: 100.0% | D73: 6.25% | E73: 100.0% | F73: 100.0% | H73: 67 | I73: 6.25% | J73: 10.0% | K73: 25.0%
B74: 68 | C74: 100.0% | D74: 6.25% | E74: 100.0% | F74: 100.0% | H74: 68 | I74: 6.25% | J74: 10.0% | K74: 25.0%
B75: 69 | C75: 100.0% | D75: 6.25% | E75: 100.0% | F75: 100.0% | H75: 69 | I75: 6.25% | J75: 10.0% | K75: 25.0%
B76: 70 | C76: 100.0% | D76: 6.25% | E76: 100.0% | F76: 100.0% | H76: 70 | I76: 6.25% | J76: 10.0% | K76: 25.0%
B77: 71 | C77: 100.0% | D77: 6.25% | E77: 100.0% | F77: 100.0% | H77: 71 | I77: 6.25% | J77: 10.0% | K77: 25.0%
B78: 72 | C78: 100.0% | D78: 6.25% | E78: 100.0% | F78: 100.0% | H78: 72 | I78: 6.25% | J78: 10.0% | K78: 25.0%
B79: 73 | C79: 100.0% | D79: 6.25% | E79: 100.0% | F79: 100.0% | H79: 73 | I79: 6.25% | J79: 10.0% | K79: 25.0%
B80: 74 | C80: 100.0% | D80: 6.25% | E80: 100.0% | F80: 100.0% | H80: 74 | I80: 6.25% | J80: 10.0% | K80: 25.0%
B81: 75 | C81: 100.0% | D81: 6.25% | E81: 100.0% | F81: 100.0% | H81: 75 | I81: 6.25% | J81: 10.0% | K81: 25.0%
B82: 76 | C82: 100.0% | D82: 6.25% | E82: 100.0% | F82: 100.0% | H82: 76 | I82: 6.25% | J82: 10.0% | K82: 25.0%
B83: 77 | C83: 100.0% | D83: 6.25% | E83: 100.0% | F83: 100.0% | H83: 77 | I83: 6.25% | J83: 10.0% | K83: 25.0%
B84: 78 | C84: 100.0% | D84: 6.25% | E84: 100.0% | F84: 100.0% | H84: 78 | I84: 6.25% | J84: 10.0% | K84: 25.0%
B85: 79 | C85: 100.0% | D85: 6.25% | E85: 100.0% | F85: 100.0% | H85: 79 | I85: 6.25% | J85: 10.0% | K85: 25.0%
B86: 80 | C86: 100.0% | D86: 6.25% | E86: 100.0% | F86: 100.0% | H86: 80 | I86: 6.25% | J86: 10.0% | K86: 25.0%
